Cogmind - Beta 15 @@@ ROGUE MODE // 2025.05.14 @ 14:10:27 // Halloween2019/Abominations Player: Minty Result: Destroyed by Lesser Abomination with Etherial Claws Performance ------------- Evolutions (0) 0 Regions Visited (1) 200 Robots Destroyed (8) 40 Value Destroyed (454) 454 Prototype IDs (2) 40 Alien Tech Used (0) 0 Bonus (0) 0 TOTAL SCORE: 734 Bonus ------- None Cogmind --------- Core Integrity 0/250 Matter 350/350 Energy 81/100 System Corruption 0% Temperature Cool (70) Movement Walking (120) Location -10/Materials Parts ------- > --- POWER (1) -------- (None) > --- PROPULSION (2) --- Aluminum Leg Aluminum Leg > --- UTILITY (2) ------ Small Storage Unit Small Matter Pod > --- WEAPON (2) ------- Beam Cannon Beam Cannon > --- INVENTORY (8) ---- Light Ion Engine Light Treads Light Treads Wheel Wheel Beam Cannon Beam Cannon Beam Cannon Peak State ------------ > --- POWER ------------ Ion Engine > --- PROPULSION ------- Aluminum Leg Aluminum Leg > --- UTILITY ---------- Small Storage Unit Small Matter Pod > --- WEAPON ----------- Beam Cannon Beam Cannon > --- INVENTORY -------- Light Ion Engine Light Treads Light Treads Wheel Wheel Beam Cannon Beam Cannon Beam Cannon [Rating: 7] Favorites ----------- Power Ion Engine Engine Ion Engine Propulsion Aluminum Leg Leg Aluminum Leg Utility Small Storage Unit Storage Small Storage Unit Weapon Beam Cannon Energy Gun Medium Laser Energy Cannon Beam Cannon Ballistic Gun Light Assault Rifle Build | -11 -10 ------- Run | Yrd Mat Slots Evolved . | . . Power . | . . Propulsion . | . . Utility . | . . Weapon . | . . Parts Attached 4 | . 4 Power 1 | . 1 Engine 1 | . 1 Core . | . . Reactor . | . . Propulsion . | . . Treads . | . . Leg . | . . Wheel . | . . Hover . | . . Flight . | . . Utility 1 | . 1 Device . | . . Storage 1 | . 1 Processor . | . . Hackware . | . . Protection . | . . Artifact . | . . Weapon 2 | . 2 Energy Gun . | . . Energy Cannon 2 | . 2 Ballistic Gun . | . . Ballistic Cannon . | . . Launcher . | . . Special Weapon . | . . Impact Weapon . | . . Slashing Weapon . | . . Piercing Weapon . | . . Special Melee Weapon . | . . Unidentified Prototypes . | . . Parts Lost 1 | . 1 Power 1 | . 1 Propulsion . | . . Utility . | . . Weapon . | . . Highest Loss Streak 1 | . 1 To Critical Strikes . | . . Average Backups 7 | . 7 Power 1 | . 1 Propulsion 4 | . 4 Utility . | . . Weapon 2 | . 2 Tool/Special . | . . Unused Backups 17 | . 17 Power 2 | . 2 Propulsion 6 | . 6 Utility 1 | . 1 Weapon 8 | . 8 Tool/Special . | . . Average Slot Usage (%) 97 | . 97 Engine 14 | . 14 Leg 28 | . 28 Storage 26 | . 26 Energy Gun 1 | . 1 Energy Cannon 25 | . 25 Ballistic Gun 1 | . 1 Peak Build Rating 7 | . 7 Average Rating 6 | . 6 On Entrance 6 | 6 6 Naked Turns . | . . Heaviest Build 17 | 11 17 Greatest Support 20 | 20 20 Greatest Overweight (x) . | . . Average Overweight (x) . | . . Largest Inventory Capacity 8 | . 8 Average Capacity 8 | . 8 Most Carried 8 | . 8 Average Carried 7 | . 7 Final Capacity 8 | 8 8 Final Carried 8 | 6 8 Class Distribution -------------------- 100% | Mutant Dominant Class ---------------- Mutant | -10/Materials Resources | -11 -10 ----------- Run | Yrd Mat Matter Collected 290 | 200 90 Remotely . | . . Salvage Created 426 | . 426 Parts 11 | . 11 Haulers Intercepted . | . . Recyclers Shooed . | . . Parts Field Recycled . | . . Retrieved Matter . | . . Parts Self-Destructed . | . . Prevented . | . . Kills | -11 -10 ------- Run | Yrd Mat Combat Hostiles Destroyed 8 | . 8 Cannons 8 | . 8 Classes Destroyed 2 | . 2 Grunt 1 | . 1 Abomination 7 | . 7 Best Kill Streak 7 | . 7 Combat Bots Only 7 | . 7 Max Kills in Single Turn 1 | . 1 Gunslinging . | . . Exploded . | . . Melee . | . . Uniques/NPCs Destroyed . | . . Combat | -11 -10 -------- Run | Yrd Mat Hostile Shots Fired 54 | . 54 Missed 14 | . 14 Hits 40 | . 40 Melee 31 | . 31 Projectile 9 | . 9 Critical Strikes 3 | . 3 Damage Taken 1099 | . 1099 Core 250 | . 250 Absorbed by Shields . | . . Core Remaining (%) 100 | 100 . Volleys Fired 29 | . 29 Largest 2 | . 2 Hottest 120 | . 120 Shots Fired 58 | . 58 Gun . | . . Cannon 58 | . 58 Launcher . | . . Special . | . . Kinetic . | . . Thermal 58 | . 58 Explosive . | . . Electromagnetic . | . . Robot Hit Streak 12 | . 12 Robot Miss Streak 5 | . 5 Penetration Max . | . . Secondary Targets . | . . Shots Hit Robots 38 | . 38 Core Hits 20 | . 20 Critical Kills . | . . Critical Parts Destroyed . | . . Critical Strikes . | . . Melee Attacks . | . . Impact . | . . Slashing . | . . Piercing . | . . Sneak Attacks . | . . Combat Hostiles . | . . Follow-up Attacks . | . . Damage Inflicted 810 | . 810 Guns . | . . Cannons 810 | . 810 Explosions . | . . Melee . | . . Ramming . | . . Kinetic . | . . Thermal 810 | . 810 Explosive . | . . Electromagnetic . | . . Impact . | . . Slashing . | . . Piercing . | . . Highest Corruption . | . . Average Corruption . | . . Corruption Purged . | . . Corruption Blocked . | . . Overload Shots . | . . Overflow Damage 27 | . 27 Projectiles 27 | . 27 Explosions . | . . Melee . | . . Knockbacks . | . . Impact . | . . Kinetic . | . . Secondary . | . . Self-Inflicted Damage . | . . Shots . | . . Rammed . | . . Targets Rammed . | . . Kicked . | . . Crushed . | . . Highest Temperature 300 | . 300 Average Temperature 146 | . 146 Received Heat Transfer 12 | . 12 Effects 2 | . 2 Energy Bleed 2 | . 2 Siege Activations . | . . Martial Activations . | . . Shielding Activations . | . . Robots Disrupted . | . . Combat Hostiles . | . . Robots Corrupted . | . . Combat Hostiles . | . . Parts Fried . | . . Impact Corruptions . | . . Robots Melted . | . . Combat Hostiles . | . . Parts Melted . | . . Heat Transferred 398 | . 398 Parts Sabotaged . | . . Parts Stolen . | . . Parts Stripped . | . . Power Chain Reactions . | . . Alert | -11 -10 ------- Run | Yrd Mat Maximum Alert Level . | . . Low Security (%) 100 | . 100 Level 1 . | . . Level 2 . | . . Level 3 . | . . Level 4 . | . . Level 5 . | . . High Security . | . . Max Security . | . . Peak Influence 30 | . 30 Initial . | . . Average 3 | . 3 Influence Increases 44 | . 44 Destroy 0b10 Robot/C 20 | . 20 Destroy Leader 10 | . 10 Successful Hack 14 | . 14 Influence Decreases 44 | . 44 Time Decay 44 | . 44 Squads Dispatched 3 | . 3 Investigation 2 | . 2 Extermination . | . . Reinforcement 1 | . 1 Assault . | . . Garrison . | . . Intercept . | . . Searches Triggered . | . . Construction Impeded . | . . Haulers Reinforced . | . . Active Scanning Responses . | . . Cargo Convoy Interrupts . | . . Stealth | -11 -10 --------- Run | Yrd Mat Distress Signals 1 | . 1 Communications Jammed . | . . Distress Signals . | . . Times Spotted 12 | . 12 Peak Tracking Total 5 | . 5 Tactical Retreats . | . . Traps | -11 -10 ------- Run | Yrd Mat Traps Triggered . | . . Indirectly . | . . Trap Hack Attempts . | . . Triggered . | . . Disarmed . | . . Reprogrammed . | . . Reused . | . . Traps Extracted . | . . Installed . | . . Triggered . | . . Machines | -11 -10 ---------- Run | Yrd Mat Machines Disabled 1 | . 1 Max in Single Turn 1 | . 1 Machines Repaired . | . . Machines Dismantled . | . . Machines Sabotaged . | . . Overloaded Fab Kills . | . . Hacking | -11 -10 --------- Run | Yrd Mat Machines Accessed 3 | . 3 Terminals 3 | . 3 Fabricators . | . . Repair Stations . | . . Recycling Units . | . . Scanalyzers . | . . Garrison Access . | . . Total Hacks 12 | . 12 Successful 7 | . 7 Failed 5 | . 5 Catastrophic . | . . Database Lockouts . | . . Manual 10 | . 10 Terminals 12 | . 12 Fabricators . | . . Repair Stations . | . . Recycling Units . | . . Scanalyzers . | . . Garrison Access . | . . Terminal Hacks 4 | . 4 Prototype ID Bank 1 | . 1 Terminal Index 1 | . 1 Alert Level 2 | . 2 Fabricator Hacks . | . . Repair Station Hacks . | . . Recycling Unit Hacks . | . . Scanalyzer . | . . Garrison Access Hacks . | . . Unauthorized Hacks 3 | . 3 Terminals 3 | . 3 Botnet 2 | . 2 Sabotage 1 | . 1 Fabricators . | . . Repair Stations . | . . Recycling Units . | . . Scanalyzers . | . . Garrison Access . | . . Data Cores Recovered . | . . Used . | . . Hacking Detections 3 | . 3 Full Trace Events . | . . Feedback Events . | . . Feedback Blocked . | . . Robot Schematics Acquired . | . . Robots Built . | . . Authchips . | . . Time . | . . Total Robot Build Rating . | . . Part Schematics Acquired . | . . Parts Built . | . . Authchips . | . . Time . | . . Total Part Build Rating . | . . Parts Repaired . | . . Time . | . . Parts Recycled . | . . Recycled Matter . | . . Retrieved Matter . | . . Retrieved Components . | . . Parts Scanalyzed . | . . Part Schematics Acquired . | . . Parts Damaged . | . . Bothacking | -11 -10 ------------ Run | Yrd Mat Used RIF Installer . | . . Robots Hacked . | . . Non-combat . | . . Combat . | . . Robot Hacks Applied . | . . Relay Couplers Released . | . . Fabnet Peak Effective % . | . . Robots Rewired . | . . Allies Hacked . | . . Hacks Repelled . | . . Allies | -11 -10 -------- Run | Yrd Mat Total Allies . | . . Largest Group . | . . Highest-Rated Group . | . . Highest-Rated Ally . | . . Total Orders . | . . Ally Attacks . | . . Total Damage . | . . Kills . | . . Allies Corrupted . | . . Allies Melted . | . . Intel | -11 -10 ------- Run | Yrd Mat Active Infowar (turns) . | . . Robot Analysis Total . | . . Derelict Logs Recovered . | . . Drone Launches . | . . Drone Recoveries . | . . Exploration | -11 -10 ------------- Run | Yrd Mat Turns Passed 272 | . 272 Spaces Moved 108 | 1 107 Core . | . . Treads . | . . Legs 108 | 1 107 Wheels . | . . Hover . | . . Flight . | . . Fastest Speed 120 | 120 120 Average Speed 120 | 120 120 Slowest Speed 120 | 120 120 Overloaded Moves . | . . Propulsion Burnouts . | . . Robots Hopped . | . . Potential Cave-ins . | . . Cave-ins Triggered . | . . Exploration Rate (%) 16 | 2 31 Regions Visited 1 Branch Regions . Pre-discovered Areas . | . . Known Exits Taken . | . . Unknown Exits Taken 1 | 1 . Scrap Searched . | . . Spaces Dug . | . . Terrain Destroyed . | . . Melee . | . . Projectile . | . . AOE . | . . Terrain Rammed . | . . Walls Destroyed . | . . Machines Disabled . | . . Actions | -11 -10 --------- Run | Yrd Mat Total 145 | . 145 Wait 1 | . 1 Move 107 | . 107 Hop . | . . Pick Up 3 | . 3 Fast Attach 1 | . 1 Attach . | . . Detach . | . . Swap 3 | . 3 Drop 1 | . 1 Fire 29 | . 29 Melee . | . . Ram . | . . Kick . | . . Crush . | . . Escape Stasis . | . . Rewire . | . . Trap . | . . Miscellaneous . | . . Route ------- -11/Scrapyard -10/Materials History --------- Turn | Location | Event 1 | -11/Scrapyard | Discovered new exit (range 0) 1 | -11/Scrapyard | Entered Materials 137 | -10/Materials | Destroyed 7 combat bots 194 | -10/Materials | Discovered new exit (range 8) 269 | -10/Materials | Core integrity fell below 50% 273 | -10/Materials | Destroyed by Lesser Abomination with Etherial Claws Last Messages --------------- 00205_ ALERT: Alarm triggered, dispatching investigation squad. 00208_ Lesser Abomination destroyed. 00211_ Frozen by Ice Anomaly. 00223_ Parts repaired by Paradox Anomaly. 00242_ Frozen by Ice Anomaly. 00248_ Lesser Abomination absorbs Hammer, Targeting Computer. 00253_ Lesser Abomination absorbs Med. Matter Pod. 00255_ Parts repaired by Paradox Anomaly. 00258_ Lesser Abomination absorbs Wheel. 00259_ Parts repaired by Paradox Anomaly. 00260_ Critical hit (Intensify). 00261_ Parts repaired by Paradox Anomaly. 00261_ Critical hit (Intensify). 00262_ Frozen by Ice Anomaly. 00262_ Parts repaired by Paradox Anomaly. 00263_ Ice Anomaly freezes K-01 Serf. 00263_ Parts repaired by Paradox Anomaly. 00268_ Critical hit (Intensify). 00271_ Ion Engine destroyed. 00272_ Destroyed Lgt. Ion Engine. Map ----- +----------------------------------------------------+ | ?????????????????????????????????????????????????? | | ?????????????????????????????????????????????????? | | ?????????????????????????????????????????????????? | | ?????????????????????????????????????????????????? | | ?????????????????????????????????????????????????? | | ?????????????????????????????????????????????????? | | ?????????????????????????????????????????????????? | | ?????????????????????????????????????????????????? | | ?????????????????????????????????????????????????? | | ?????????????????????????????????????????????????? | | ?????????????????????????????????????????????????? | | ?????????????????????????????????????????????????? | | ?????????????????????????????????????????????????? | | ???????????????????????????#####?????????????????? | | ?????????????????????????? ??????????????????? | | ?????????????????????????? ??????????????????? | | ?????????????????????????? ???????????????????? | | ?????????????????????????? #???????????????????? | | ?????????????????????????? #???????????????????? | | ?????????????????????????? #???????????????????? | | ????????????????#########? #???????????????????? | | ???????????###### ## #???????????????????? | | ???????????# ##??????????????????? | | ?########### /! < +??????????????????? | | ?# """ # !%= AA #???????????????????? | | ?# "T" # ## #@ #???????????????????? | | ?# """ # ## "|" # %#???????????????????? | | ?# """ ! + ##""|" ""#% % ?????????????????? | | ?# """ # ########## = ??????????????? | | ?# # #? %+? ????????????? | | ?# ! # # ??###+###### ??????????? | | ?# # # """ #???? ??????####??????????? | | ?########### + """ #???? ????????????????????? | | ############ # """ #???? ???????????????????? | | "T" # %# ?????? ???????????????????? | | / # #?######????? ??????????????????? | | // % # #???????????? ??????????????????? | | / % %+ %#????????????? ?????????????????? | | #[ #????????????? ?????????????????? | | ###########"|% ##???????????? ???????????????????? | | ??????????# #????????????????????????????????? | | ??????????# #????????????????????????????????? | | ??????????# #????????????????????????????????? | | ??????????# #########????????????????????????? | | ??????????# ?????????????????????? | | ??????????## %"#########????????????????????????? | | ???????????# " #???????????????????????? | | ???????????# + #???????????????????????? | | ####???????# # #???????????????????????? | | ###+##### |# #???????????????????????? | +----------------------------------------------------+ Best States ------------- Heat Dissipation 25 Energy Generation 10 Energy Capacity 250 Matter Stores 350 Matter Capacity 350 Sight Range 16 Terrain Scan Density 10 Evasion (%) 55 Item Schematics ----------------- None Robot Schematics ------------------ None Fabricated ------------ Nothing Repaired ---------- Nothing Alien Tech Used ----------------- None Achievements -------------- None Challenges ------------ None Game ------ Seed ArcFieldthrustDesublimator Manual? 0 Play Time 00:05:30 Cumulative 1038.9 hours Start 2025.05.14 @ 14:06:41 End 2025.05.14 @ 14:10:27 Sessions 1 Manual Loads 0 Difficulty Rogue Special Mode Halloween2019/Abominations Game No. 1278 Rogue 995 Adventurer 124 Explorer 159 Win Type - Total 45 Types 31/0/8/4/1/0/0/1/0/0 Lore% 91 Gallery% 85 Achievement% 80 Wizard Run 0 Options --------- Layout 0 ASCII 0 Keyboard 1 Movement Numpad Keybinds 0 Fullscreen 2 Font 18/X11 Map View 76x50 Zoom Use 0% Tactical HUD 1 Map Filters NONE Filters NONE Steam 1 RUN: 91a8f21b-6f30-4282-8d3e-27fc5935b85e